bitfinex/quotes_ETHUSD_20260310
["timestamp","ask_amount","ask_price","bid_price","bid_amount"]
[1773153480311,1.23067834,2031.4,2030.6,1.2311632]
[1773153480525,0.03690293,2031.5,2030.6,1.2311632]
[1773153480526,1.26756969,2031.5,2030.7,0.47178803]
[1773153480836,1.26753273,2031.5,2030.7,0.47178803]
[1773153481804,0.48955882,2031.4,2030.6,1.2311632]
[1773153482513,1.72028709,2031.4,2030.5,4.92465281]
[1773153482723,0.03690293,2031.3,2030.6,0.47178803]
[1773153483859,0.51216227,2031.2,2030.4,4.00373607]
[1773153484019,0.51216227,2031.2,2030.4,1.28049061]
[1773153484345,0.51216227,2031.2,2030.4,1.77497987]
[1773153484545,0.03690293,2031.1,2030.5,0.49448926]
[1773153484726,0.03690293,2031.3,2030.5,0.49448926]
[1773153486052,0.03690293,2031.2,2030.5,0.49448926]
[1773153486381,4.92333806,2031.6,2030.5,0.49448926]
[1773153486382,0.03690293,2031.4,2030.5,0.49448926]
[1773153486556,1.26760559,2031.4,2030.7,0.49448926]
[1773153487526,0.51216227,2031.4,2030.7,0.49448926]
[1773153487845,0.03690293,2031.3,2030.8,0.34482949]
[1773153488048,0.03690293,2031.5,2030.8,0.34482949]
[1773153488346,0.001,2031.6,2030.8,0.34482949]
[1773153488558,0.03690293,2031.5,2030.9,1.23098133]
[1773153489416,0.47525934,2031.4,2030.5,2.56605332]
[1773153489622,0.47525934,2031.4,2030.6,0.39407601]
[1773153490846,0.03690293,2031.5,2030.8,0.34482949]
[1773153491047,0.03690293,2031.3,2030.8,0.39407116]
[1773153491264,0.47625934,2031.6,2030.8,0.39407116]
[1773153493266,0.47525934,2031.5,2030.9,1.23098133]
[1773153493569,0.001,2031.2,2030.9,1.23098133]
[1773153493766,1.23156176,2031.6,2031.0,0.34482949]
[1773153493767,0.001,2031.6,2031.0,0.34482949]
[1773153494339,4.92032942,2032.4,2031.0,0.34482949]
[1773153494340,0.47525934,2032.0,2031.3,0.34382949]
[1773153494668,0.47525934,2032.2,2031.3,0.34382949]
[1773153495165,0.47525934,2032.2,2031.5,0.34382949]
[1773153495341,1.70534378,2032.4,2031.6,1.57438668]
[1773153495550,0.47525934,2032.4,2031.6,1.57438668]
[1773153495955,1.70533765,2032.4,2031.6,1.57438668]
[1773153496282,0.47525934,2032.4,2031.6,1.57438668]
[1773153496641,0.47525934,2032.3,2031.6,1.57438668]
[1773153497162,0.47525934,2032.3,2031.6,1.23055719]
[1773153497339,0.47525934,2032.2,2031.3,0.34382949]
[1773153497868,0.47525934,2032.2,2031.4,0.34382949]
[1773153498066,1.23005059,2032.5,2031.4,0.34382949]
[1773153498269,0.47525934,2032.4,2031.4,0.34382949]
[1773153499375,1.70538594,2032.4,2031.5,1.57444726]
[1773153499543,0.47525934,2032.3,2031.5,1.23061777]
[1773153501402,0.47525934,2032.1,2031.3,4.92291562]
[1773153501539,0.47525934,2032.1,2031.3,1.23073893]
[1773153502169,0.47525934,2032.1,2031.4,0.04922713]
[1773153503456,0.47525934,2032.1,2031.5,1.23061777]
[1773153503671,7.34346574,2032.8,2031.6,0.39305177]
[1773153503672,0.47525934,2032.3,2031.6,0.39305177]
[1773153504076,0.47525934,2032.3,2031.5,1.23061777]
[1773153504771,0.47525934,2032.1,2031.5,1.23061777]
[1773153504988,0.47525934,2032.1,2031.0,2.42410433]
[1773153504989,0.47525934,2032.1,2031.1,1.57468961]
[1773153505350,0.47525934,2031.9,2031.0,1.23088895]
[1773153505548,0.47525934,2031.9,2030.8,1.23213011]
[1773153505549,2.42410433,2031.6,2030.8,1.23213011]
[1773153505754,0.47525934,2031.5,2030.9,0.02385843]
[1773153506354,0.47525934,2031.5,2031.3,0.0011]
[1773153506547,0.47525934,2031.7,2031.3,0.0011]
[1773153506952,1.70657432,2032.0,2031.3,0.0011]
[1773153507154,0.47525934,2031.8,2031.3,0.0011]
[1773153507576,0.47525934,2031.8,2031.3,1.23183893]
[1773153508167,0.47525934,2031.8,2031.3,1.28106848]
[1773153509053,0.47625934,2032.0,2031.3,1.28106848]
[1773153509282,1.70658155,2032.0,2031.3,1.28106848]
[1773153509475,1.70658155,2032.0,2031.3,1.23183893]
[1773153509778,0.47525934,2031.9,2031.3,1.23183893]
[1773153510477,0.47525934,2031.9,2031.3,1.28106848]
[1773153511182,0.47525934,2031.9,2031.3,0.05032955]
[1773153511383,0.47525934,2031.9,2031.3,0.0011]
[1773153511781,0.47525934,2031.9,2031.4,1.23067834]
[1773153512084,1.23132749,2032.0,2031.5,0.0492247]
[1773153512281,1.23132749,2032.0,2031.4,1.23067834]
[1773153512587,0.47525934,2031.9,2031.4,1.23067834]
[1773153514207,0.47525934,2031.9,2031.3,4.92381339]
[1773153514358,0.47525934,2031.9,2031.4,0.04922713]
[1773153516573,0.47525934,2031.9,2031.5,1.23061777]
[1773153518475,0.47525934,2031.9,2031.6,0.0011]
[1773153518674,0.001,2031.7,2031.6,0.0011]
[1773153520094,1.71104436,2032.3,2031.6,0.48180145]
[1773153520306,1.23009521,2032.4,2031.6,0.48180145]
[1773153520608,0.48086999,2032.3,2031.6,0.48180145]
[1773153520804,0.48086999,2032.2,2031.6,1.71230924]
[1773153521603,0.48086999,2032.2,2031.6,1.23165034]
[1773153522780,1.71110404,2032.2,2031.6,0.0011]
[1773153523280,0.48086999,2032.1,2031.6,0.0011]
[1773153523477,0.48086999,2032.3,2031.6,0.48180145]
[1773153523786,1.71100563,2032.3,2031.6,0.48180145]
[1773153524307,1.71091956,2032.5,2031.6,0.48180145]
[1773153524896,0.48086999,2032.5,2031.8,0.48070145]
[1773153525281,1.71088759,2032.5,2031.8,0.48070145]
[1773153525490,0.48086999,2032.3,2031.6,0.0011]
[1773153526097,0.48086999,2032.1,2031.6,0.0011]
[1773153526513,0.48086999,2032.1,2031.6,1.23165582]
[1773153526679,0.48086999,2032.1,2031.6,0.0011]
[1773153526884,1.7047305,2032.0,2031.6,0.0011]
[1773153528616,1.23031496,2032.0,2031.6,0.0011]
[1773153528915,0.47441554,2032.3,2031.7,1.23049662]
[1773153529490,0.47441554,2032.5,2031.7,1.70584659]
[1773153529814,1.70443911,2032.5,2031.8,0.47534997]
[1773153530398,0.47441554,2032.5,2031.8,0.47534997]
[1773153531102,0.47441554,2032.5,2031.9,1.70572548]
[1773153533515,1.70443741,2032.5,2031.9,1.70572548]
[1773153533815,1.23002187,2032.5,2031.9,1.23037551]
[1773153533990,0.47441554,2032.4,2031.9,1.23037551]
[1773153535223,1.50441554,2032.6,2032.1,1.23025441]
[1773153536113,0.47441554,2033.2,2032.1,1.70560438]
[1773153536394,0.47441554,2033.1,2032.2,0.47534997]
[1773153536593,0.47441554,2033.3,2032.2,0.47534997]
[1773153536795,0.47441554,2033.3,2032.4,0.47534997]
[1773153537094,1.032,2033.6,2032.6,0.47534997]
[1773153537095,0.47441554,2033.5,2032.6,0.47534997]
[1773153537313,1.70364161,2033.8,2032.7,0.47534997]
[1773153537529,1.70364161,2033.8,2033.0,0.47534997]
[1773153538024,0.47441554,2033.7,2033.0,0.47534997]
[1773153538227,0.47441554,2033.7,2032.7,1.47534997]
[1773153538388,0.47441554,2033.7,2032.8,0.47534997]
[1773153539193,2.53708033,2033.9,2033.0,0.47534997]
[1773153539409,1.22923492,2033.8,2033.0,0.47534997]
[1773153540223,5.39109461,2033.9,2033.0,0.47534997]
[1773153540224,1.70362435,2033.9,2033.0,0.47534997]
[1773153540528,0.47441554,2033.8,2033.0,0.47534997]
[1773153540829,0.1600117,2034.1,2033.5,0.47534997]
[1773153541026,0.33293353,2034.4,2033.5,0.47534997]
[1773153541027,0.33293353,2034.4,2033.7,2.42410433]
[1773153541331,0.47441554,2035.4,2034.1,1.70439475]
[1773153541543,0.47441554,2035.3,2034.3,0.47534997]
[1773153542032,1.025,2035.7,2034.0,7.34028347]
[1773153542033,0.47441554,2034.9,2034.0,0.47534997]
[1773153542215,0.47441554,2035.5,2034.1,0.47534997]
[1773153542731,0.47441554,2035.2,2034.0,1.22909677]
[1773153542894,0.47441554,2035.2,2033.9,3.77086521]
[1773153543495,0.47441554,2034.9,2033.9,2.54172047]
[1773153543701,0.47441554,2034.9,2033.9,3.77088501]
[1773153544027,0.47441554,2034.9,2034.0,0.487613]
[1773153544321,1.22844086,2035.1,2034.3,0.487613]
[1773153544626,1.22844086,2035.1,2034.0,0.487613]
[1773153544627,0.47978805,2035.0,2034.0,0.487613]
[1773153545323,1.22844086,2035.1,2033.9,6.19498934]
[1773153545324,1.22844086,2035.1,2034.3,0.487613]
[1773153545626,1.22844086,2035.1,2034.3,1.71653548]
[1773153545822,1.70822891,2035.1,2034.3,0.487613]
[1773153546128,1.70822891,2035.1,2032.9,4.18655752]
[1773153546129,0.47978805,2034.7,2033.7,1.71689363]
[1773153546341,0.47978805,2034.7,2033.8,0.487613]
[1773153546699,0.47978805,2034.7,2033.9,0.487613]
[1773153547201,0.47978805,2035.0,2033.7,1.22927288]
[1773153547399,1.22844086,2035.1,2033.5,0.487613]
[1773153547400,0.47978805,2034.8,2033.5,0.487613]
[1773153547723,0.47978805,2034.5,2033.5,1.76615902]
[1773153548225,0.47978805,2034.5,2033.5,0.487613]
[1773153548429,0.47978805,2034.5,2033.5,1.76619137]
[1773153548628,0.47978805,2034.5,2033.5,1.76616594]
[1773153548825,0.47978805,2034.5,2033.6,0.487613]
[1773153549030,0.47978805,2034.5,2033.7,0.53678446]
[1773153549529,1.22868236,2034.7,2034.0,0.487613]
[1773153550218,1.22868236,2034.7,2033.9,1.22916564]
[1773153550219,0.47978805,2035.0,2034.1,0.487613]
[1773153550407,0.47978805,2035.0,2033.9,0.487613]
[1773153550728,0.47978805,2035.0,2033.9,0.53677962]
[1773153550929,0.47978805,2035.0,2034.1,0.487613]
[1773153551127,1.22844086,2035.1,2034.1,0.487613]
[1773153551331,0.47978805,2035.0,2034.1,0.487613]
[1773153551499,0.47978805,2034.8,2034.0,1.27825761]
[1773153551950,1.2285616,2034.9,2034.1,0.487613]
[1773153552237,0.47978805,2034.8,2034.0,1.24455738]
[1773153552401,0.47978805,2034.8,2034.0,1.27825761]
[1773153552597,0.47978805,2034.8,2034.0,1.76587061]
[1773153552803,0.47978805,2034.8,2033.9,1.71673206]
[1773153553104,0.47978805,2034.8,2033.9,1.22911906]
[1773153553321,0.47978805,2034.8,2033.7,1.22928652]
[1773153553521,0.47978805,2034.8,2033.7,1.71689952]
[1773153553835,0.47978805,2034.6,2033.7,1.71689952]
[1773153554230,0.47978805,2034.6,2033.8,0.04916904]
[1773153554929,0.47978805,2034.6,2033.7,1.71689952]
[1773153555135,0.47978805,2034.6,2033.7,0.487613]
[1773153555352,0.47978805,2034.6,2033.6,1.22930311]
[1773153555513,0.47978805,2034.6,2033.5,0.487613]
[1773153555833,0.47978805,2034.4,2033.5,1.71701385]
[1773153556032,1.22880314,2034.5,2033.6,0.487613]
[1773153556547,2.73749585,2034.7,2033.6,0.487613]
[1773153556738,2.73749585,2034.7,2033.9,0.0011]
[1773153556911,0.47978805,2034.6,2033.9,0.0011]
[1773153557837,0.47978805,2034.3,2033.9,0.0011]
[1773153558219,0.47978805,2034.3,2033.7,0.0011]
[1773153558534,0.47978805,2034.2,2033.7,0.0011]
[1773153559734,0.47978805,2034.2,2033.0,1.71731984]
[1773153559735,1.22916564,2033.9,2033.0,1.71731984]
[1773153559940,0.47978805,2033.8,2033.0,1.76650096]
[1773153560434,0.47978805,2033.8,2032.9,5.26679735]
[1773153560635,0.47978805,2033.8,2033.0,0.04918839]
[1773153561231,2.42410433,2033.8,2032.9,4.08626334]
[1773153561452,0.47978805,2033.7,2032.7,1.71745487]
[1773153561814,1.22934697,2033.6,2032.5,0.487613]
[1773153562138,1.70913502,2033.6,2032.5,0.487613]
[1773153562527,0.47978805,2033.5,2032.5,0.487613]
[1773153563033,4.91714608,2033.8,2032.7,0.487613]
[1773153563231,0.47978805,2034.2,2033.0,0.487613]
[1773153563412,1.65754528,2034.1,2033.2,0.487613]
[1773153563612,1.22904478,2034.1,2033.3,0.04918113]
[1773153563819,1.22904478,2034.1,2033.4,1.22946788]
[1773153564039,1.22904478,2034.1,2033.3,1.27867733]
[1773153564040,1.70883283,2034.1,2033.3,1.27867733]
[1773153564942,0.47978805,2033.9,2033.1,1.2296493]
[1773153565544,0.47978805,2033.9,2033.1,1.7172623]
[1773153565949,1.22915262,2034.0,2033.2,0.487613]
[1773153566239,0.43007598,2033.9,2033.2,0.487613]
[1773153566409,1.22915262,2034.0,2033.2,0.487613]
[1773153567364,0.43021954,2033.9,2033.3,0.04918113]
[1773153567517,0.47978805,2033.9,2033.2,0.487613]
[1773153568023,1.70899122,2033.9,2033.2,1.71717659]
[1773153568420,1.70899122,2033.9,2033.3,0.04918113]
[1773153568632,1.70877241,2034.2,2033.3,0.53679413]
[1773153568831,0.43025567,2034.1,2033.4,0.487613]
[1773153569014,1.22892561,2034.3,2033.6,0.487613]
[1773153569219,0.43033634,2034.2,2033.6,0.487613]
[1773153569421,1.22892425,2034.3,2033.6,0.487613]
[1773153569661,0.43057845,2034.2,2033.6,0.487613]
[1773153569866,1.7087123,2034.3,2033.6,0.487613]
[1773153570064,0.43058375,2034.2,2033.6,1.22932371]
[1773153570350,1.7086406,2034.5,2033.7,0.487613]
[1773153570653,0.001,2034.2,2033.7,0.487613]
[1773153570946,0.001,2034.2,2033.5,4.91761824]
[1773153570947,0.43060181,2034.1,2033.5,1.22935941]
[1773153571249,0.001,2034.2,2033.6,0.487613]
[1773153571450,0.001,2034.2,2033.5,1.22935941]
[1773153571627,0.48078805,2034.2,2033.5,1.22935941]
[1773153572025,1.70883283,2034.1,2033.4,4.91781993]
[1773153572332,1.22904478,2034.1,2033.5,0.04917629]
[1773153572752,0.43077411,2034.0,2033.3,1.23058487]
[1773153572924,1.22904478,2034.1,2033.3,1.23058487]
[1773153573120,0.43074662,2034.0,2033.3,0.0011]
[1773153573452,0.43074662,2033.9,2033.3,0.0011]
[1773153573649,0.43074662,2033.8,2033.3,0.0011]
[1773153573848,1.22904478,2034.1,2033.3,0.0011]
[1773153574154,1.65984284,2034.0,2033.3,0.0011]
[1773153574337,0.43069121,2033.9,2033.3,0.0011]
[1773153576448,1.23001958,2034.2,2033.4,2.42026326]
[1773153576449,0.001,2034.2,2033.4,2.42026326]
[1773153576653,0.001,2034.2,2033.7,2.42026326]
[1773153576851,2.25960303,2034.9,2033.7,2.42026326]
[1773153577053,1.22860303,2034.9,2033.7,2.42026326]
[1773153578060,1.22860303,2034.9,2033.5,0.999]
[1773153578260,4.9142464,2035.0,2033.5,1.22940742]
[1773153578430,4.9142464,2035.0,2033.5,2.22840742]
[1773153578759,2.42026326,2034.9,2033.5,1.22940742]
[1773153579362,2.42026326,2034.9,2033.6,0.04917387]
[1773153579664,2.42026326,2034.9,2033.5,1.22940742]
[1773153580339,1.22862197,2034.8,2033.5,1.22940742]
[1773153581069,1.031,2034.7,2033.5,1.22940742]
[1773153581732,1.22862197,2034.8,2033.5,1.22940742]
[1773153582137,1.22862197,2034.8,2033.8,2.42026326]
[1773153582364,1.59366648,2035.9,2034.4,2.42026326]
[1773153582637,1.59366648,2035.9,2034.7,2.42026326]
[1773153582638,5.94323063,2035.8,2034.7,2.42026326]
[1773153582938,1.22801846,2035.8,2034.7,2.42026326]
[1773153583164,1.59365225,2035.9,2034.9,2.42026326]
[1773153583365,1.59361716,2035.9,2034.9,2.42026326]
[1773153583550,1.59361716,2035.9,2035.0,0.999]
[1773153584063,4.97550364,2036.7,2035.0,0.999]
[1773153584064,5.7983832,2036.6,2035.4,2.42026326]
[1773153584264,5.7983832,2036.6,2035.0,0.999]
[1773153584265,1.22759636,2036.5,2035.3,1.22832014]
[1773153584450,1.22759636,2036.5,2035.2,3.64860539]
[1773153585663,2.42026326,2036.4,2035.0,1.22848171]
[1773153585837,2.42026326,2036.4,2034.9,2.22655121]
[1773153586363,1.22759636,2036.5,2035.2,2.42026326]
[1773153586537,2.25859636,2036.5,2035.2,2.42026326]
[1773153587066,1.22759636,2036.5,2035.2,2.42026326]
[1773153587761,1.22759636,2036.5,2035.0,0.998]
[1773153588364,1.22759636,2036.5,2035.2,2.42026326]
[1773153588662,1.22759636,2036.5,2035.1,4.91357551]
[1773153588866,1.03,2036.4,2035.1,4.91357551]
[1773153589276,1.22759636,2036.5,2035.1,4.91357551]
[1773153589432,1.03,2036.4,2035.1,4.91357551]
[1773153589639,2.25759636,2036.5,2035.1,4.91357551]
[1773153590564,1.22759636,2036.5,2035.1,4.91357551]
[1773153590769,2.25759636,2036.5,2035.6,2.42026326]
[1773153590946,1.22759636,2036.5,2035.6,2.42026326]
[1773153591341,1.22759636,2036.5,2035.2,2.42026326]
[1773153591536,1.22759636,2036.5,2035.5,2.42026326]
[1773153591842,1.22759636,2036.5,2035.3,0.997]
[1773153592143,1.22759636,2036.5,2035.5,2.42026326]
[1773153592573,2.11554398,2036.6,2035.6,1.22813912]
[1773153594603,4.90846099,2037.3,2036.4,3.64789404]
[1773153594769,4.90846099,2037.3,2036.4,1.22763078]
[1773153594938,1.56625638,2037.4,2036.7,2.42026326]
[1773153594939,0.33914207,2037.4,2036.7,2.42026326]
[1773153595140,2.50168788,2038.5,2036.7,2.42026326]
[1773153595141,1.22687343,2037.7,2036.7,2.42026326]
[1773153595343,1.22687343,2037.7,2036.4,3.64789404]
[1773153595574,1.22687343,2037.7,2036.7,2.42026326]
[1773153595954,1.22687343,2037.7,2036.4,3.64789404]
[1773153596172,1.22687343,2037.7,2036.7,2.42026326]
[1773153596375,1.22687343,2037.7,2036.4,3.64789404]
[1773153596672,1.22669283,2038.0,2037.2,2.42026326]
[1773153596878,1.47146062,2038.9,2037.2,2.42026326]
[1773153596879,2.42026326,2038.9,2037.2,2.42026326]
[1773153597176,0.001,2037.5,2037.3,2.42026326]
[1773153597470,2.42026326,2038.9,2037.3,2.42026326]
[1773153597774,2.42026326,2038.9,2037.0,6.06782156]
[1773153597775,1.019,2038.9,2037.6,2.42026326]
[1773153598273,2.42026326,2038.7,2037.2,2.42026326]
[1773153598441,1.019,2038.9,2037.2,2.42026326]
[1773153598642,3.64647475,2038.8,2037.5,2.42026326]
[1773153598867,3.64647475,2038.8,2037.4,1.22700004]
[1773153598868,1.22621149,2038.8,2037.1,1.22723479]
[1773153599080,1.22621149,2038.8,2037.3,2.42026326]
[1773153599081,3.64647475,2038.8,2037.3,2.42026326]
[1773153599254,4.66647475,2038.8,2037.3,2.42026326]
[1773153599651,1.22621149,2038.8,2037.3,3.41626326]
[1773153600276,1.22597096,2039.3,2038.2,2.42026326]
[1773153600484,4.90244249,2039.8,2038.5,2.42026326]
[1773153600485,4.90244977,2039.8,2038.5,2.42026326]
[1773153600668,4.90244977,2039.8,2038.3,2.22145211]
[1773153600669,2.42026326,2039.8,2038.3,2.22145211]
[1773153600844,1.51264912,2039.9,2038.3,2.22145211]
[1773153600845,1.51264912,2039.9,2038.4,7.32602075]
[1773153601048,1.51264912,2039.9,2038.4,4.90575749]
[1773153601376,4.84052652,2040.6,2038.4,4.90575749]
[1773153601377,1.2251899,2040.5,2038.4,4.90575749]
[1773153601548,1.2251899,2040.5,2038.6,0.7]
[1773153601748,1.2251899,2040.5,2038.7,0.995]
[1773153602013,3.64545316,2040.5,2038.9,2.42026326]
[1773153602851,3.64545316,2040.5,2038.9,3.6464122]
[1773153603249,3.64545316,2040.5,2038.6,0.7]
[1773153603250,2.42026326,2039.9,2038.6,0.7]
[1773153603462,2.42026326,2039.9,2038.6,1.22632492]
[1773153603675,2.42026326,2039.9,2038.5,1.22635053]
[1773153603873,1.2251899,2040.5,2038.9,2.42026326]
[1773153604078,0.87449287,2041.6,2039.5,2.42026326]
[1773153604283,0.87449287,2041.6,2040.8,2.42026326]
[1773153604488,2.09904859,2041.6,2040.5,0.25601577]
[1773153605181,0.065536,2041.5,2038.9,1.2062636]
[1773153605349,0.21502099,2041.3,2039.0,0.977]
[1773153605679,2.42026326,2040.5,2038.9,3.39226326]
[1773153605877,2.42026326,2040.8,2039.2,2.42026326]
[1773153606066,1.019,2041.4,2039.8,2.42026326]
[1773153606384,0.87449287,2041.6,2040.0,2.42026326]
[1773153606588,10.15325988,2045.1,2039.8,1.036536]
[1773153606589,1.22351098,2043.3,2041.2,8.29762118]
[1773153606758,1.46721656,2044.7,2042.0,0.065536]
[1773153606951,1.22243411,2045.1,2042.2,0.065536]
[1773153607425,1.22243411,2045.1,2042.3,0.962]
[1773153607550,1.22243411,2045.1,2043.5,2.39341981]
[1773153607853,1.22243411,2045.1,2041.7,6.95815325]
[1773153608060,2.39341981,2044.3,2042.4,0.14948499]
[1773153608391,2.39341981,2044.3,2041.5,4.96293548]
[1773153608392,0.065536,2043.5,2040.9,1.64997834]
[1773153608694,0.065536,2043.9,2041.1,0.065536]
[1773153608856,2.39341981,2042.7,2040.4,4.90094957]
[1773153609184,3.61699067,2043.2,2041.1,2.39341981]
[1773153609379,1.22357086,2043.2,2041.7,2.39341981]
[1773153609881,1.22357086,2043.2,2041.1,0.952]
[1773153609882,1.22457086,2043.2,2041.1,0.952]
[1773153610067,1.22457086,2043.2,2041.0,2.72323872]
[1773153610068,0.001,2043.2,2042.0,2.39341981]
[1773153610375,0.001,2043.2,2041.9,3.34441981]
[1773153610592,0.001,2043.2,2041.0,9.90349815]
[1773153610805,0.001,2043.2,2041.4,1.22464975]
[1773153611083,0.001,2043.2,2041.5,0.955]
[1773153611285,2.39441981,2043.2,2041.4,1.22464975]
[1773153611516,0.001,2043.2,2041.4,3.61806956]
[1773153611853,2.39341981,2042.9,2041.4,1.22464975]
[1773153612090,0.001,2043.2,2041.4,1.22464975]
[1773153612379,0.001,2043.2,2041.5,0.961]
[1773153612583,0.001,2043.2,2041.4,3.61806956]
[1773153612788,0.001,2043.2,2042.4,1.22405013]
[1773153612986,0.001,2043.2,2042.4,2.18805013]
[1773153613201,0.001,2043.2,2042.4,1.22405013]
[1773153613368,0.001,2043.2,2041.8,2.39341981]
[1773153613567,0.001,2043.2,2042.1,2.39341981]
[1773153614137,0.001,2043.2,2042.0,0.968]
[1773153614311,0.001,2043.2,2041.9,2.19334987]
[1773153614821,0.001,2043.2,2042.1,2.39341981]
[1773153615208,1.46686592,2045.2,2042.7,2.39341981]
[1773153615408,2.39341981,2044.5,2042.4,2.39341981]
[1773153615654,2.39341981,2044.2,2042.2,1.22417001]
[1773153615806,2.39341981,2044.2,2042.3,0.969]
[1773153616006,2.39341981,2044.2,2042.2,1.22417001]
[1773153616007,2.39341981,2044.2,2042.2,1.22117001]
[1773153616232,2.39341981,2044.2,2041.8,2.39341981]
[1773153616233,2.39341981,2044.0,2041.8,2.39341981]
[1773153616433,2.39341981,2043.7,2041.8,2.39341981]
[1773153616722,2.39341981,2043.7,2041.3,4.96379766]
[1773153616723,2.39341981,2043.3,2041.3,0.77636667]
[1773153617122,2.39341981,2043.0,2041.3,0.974]
[1773153617319,2.39341981,2043.0,2040.6,1.4700968]
[1773153617320,2.39341981,2042.7,2040.9,1.22494977]
[1773153617517,2.39341981,2042.7,2040.9,3.61836958]
[1773153617810,2.39341981,2042.7,2041.0,0.04899559]
[1773153618010,1.22375055,2042.9,2041.5,2.39341981]
[1773153618219,1.22375055,2042.9,2041.0,7.22925502]
[1773153618220,1.22375055,2042.9,2041.0,2.39341981]
[1773153618534,2.39341981,2042.4,2040.9,1.22494977]
[1773153618731,2.39341981,2042.4,2040.4,8.27329269]
[1773153618732,2.39341981,2042.1,2040.5,1.2251899]
[1773153619235,1.22393028,2042.6,2040.5,3.61860971]
[1773153619610,1.22393028,2042.6,2040.8,2.39341981]
[1773153620145,0.065536,2043.1,2040.8,2.39341981]
[1773153620146,1.22357086,2043.2,2041.4,2.39341981]
[1773153620310,2.39341981,2043.0,2041.2,0.981]
[1773153620636,2.39341981,2043.0,2040.6,0.21502099]
[1773153620637,2.39341981,2043.0,2041.1,2.39341981]
[1773153620935,2.39341981,2043.1,2041.2,0.01504957]
[1773153621325,1.22369065,2043.0,2041.2,1.23990361]
[1773153621712,1.22369065,2043.0,2041.2,4.60762134]
[1773153621921,1.22369065,2043.0,2041.2,1.22476974]
[1773153622237,2.39871773,2042.9,2041.4,1.3]
[1773153622445,2.39871773,2042.6,2041.4,1.3]
[1773153622641,2.39871773,2042.6,2041.5,0.04898359]
[1773153623021,2.39871773,2042.6,2041.2,1.22586974]
[1773153623329,1.2239902,2042.5,2041.2,0.0011]
[1773153624329,0.001,2042.8,2041.2,0.0011]
[1773153624515,0.001,2042.8,2041.6,2.39871773]
[1773153624714,1.22482374,2042.8,2041.2,0.0011]
[1773153624942,1.22482374,2042.8,2041.2,0.05009078]
[1773153625451,1.22482374,2042.8,2041.3,1.22470974]
[1773153625452,0.001,2042.8,2041.3,1.22470974]
[1773153625814,0.001,2042.8,2041.4,2.39871773]
[1773153626013,0.001,2042.8,2041.7,2.39871773]
[1773153626224,0.001,2042.8,2041.8,1.03197639]
[1773153626730,0.001,2042.8,2041.7,2.39871773]
[1773153626944,0.001,2042.8,2041.8,0.984]
[1773153627111,0.001,2042.8,2042.1,2.39871773]
[1773153627315,0.001,2042.8,2042.2,1.22417001]
[1773153627752,1.2230015,2044.2,2042.7,2.39871773]
[1773153628048,4.89097302,2044.6,2042.2,6.40817001]
[1773153628049,3.62151058,2044.5,2042.4,2.39871773]
[1773153628248,3.62151058,2044.5,2042.2,1.22417001]
[1773153628249,2.39871773,2043.9,2042.2,1.22417001]
[1773153628420,0.065536,2044.4,2042.5,2.39871773]
[1773153628616,2.39871773,2044.2,2042.2,3.62288774]
[1773153628816,2.39871773,2043.9,2042.2,1.22417001]
[1773153629425,2.39871773,2043.6,2042.1,4.89668005]
[1773153629823,2.39871773,2043.6,2042.0,4.89668005]
[1773153630023,3.39771773,2043.6,2042.0,4.89668005]
[1773153630846,3.39771773,2043.6,2042.1,0.04896919]
[1773153631033,1.22321166,2043.8,2042.1,0.04896919]
[1773153631425,1.22321166,2043.8,2042.2,1.22417001]
[1773153631626,1.22321166,2043.8,2042.2,3.62288774]
[1773153632118,1.22285267,2044.4,2042.5,2.39871773]
[1773153632320,1.22281513,2044.5,2042.8,2.39871773]
[1773153632827,2.39871773,2045.1,2043.1,2.39871773]
[1773153633028,7.28852211,2045.1,2043.1,2.39871773]
[1773153633225,7.28852211,2045.1,2043.4,2.39871773]
[1773153633226,1.22243411,2045.1,2043.4,2.39871773]
[1773153633565,4.88801991,2045.9,2043.7,2.39871773]
[1773153633566,2.39871773,2045.6,2043.7,2.39871773]
[1773153633743,1.22201583,2045.8,2043.5,1.22339124]
[1773153633744,2.39871773,2045.3,2043.5,1.22339124]
[1773153633943,1.22201583,2045.8,2043.9,2.39871773]
[1773153634327,2.39871773,2045.6,2043.6,3.69871773]
[1773153634535,2.39871773,2045.6,2043.6,2.39871773]
[1773153634962,1.22201583,2045.8,2044.2,2.39871773]
[1773153635261,0.33107315,2046.0,2044.2,2.39871773]
[1773153635438,0.33107315,2046.0,2044.5,2.39871773]
[1773153635439,1.22190834,2046.0,2044.5,2.39871773]
[1773153635839,1.38188326,2046.1,2044.5,2.39871773]
[1773153636171,0.001,2044.8,2044.3,1.22291248]
[1773153636603,3.78060099,2046.1,2044.3,1.22291248]
[1773153636767,3.78060099,2046.1,2044.3,2.21491248]
[1773153636952,1.38188326,2046.1,2044.4,2.39871773]
[1773153637137,1.38188326,2046.1,2044.3,2.21491248]
[1773153637138,1.38185032,2046.1,2044.8,2.39871773]
[1773153637340,0.1600117,2046.1,2044.9,1.22255367]
[1773153637639,1.38184868,2046.1,2044.9,1.22255367]
[1773153638044,1e-08,2046.1,2045.1,2.39871773]
[1773153638246,1e-08,2046.1,2044.9,1.22255367]
[1773153638247,1e-08,2046.1,2045.0,7.19615319]
[1773153638567,1e-08,2046.1,2045.3,2.39871773]
[1773153638742,1.22183972,2046.1,2045.4,0.995]
[1773153638942,1.22183972,2046.1,2045.0,2.39871773]
[1773153639144,1.22183972,2046.1,2045.3,1.3]
[1773153639347,1e-08,2046.1,2045.4,1.22225481]
[1773153639653,1e-08,2046.1,2045.0,4.88996197]
[1773153639857,1e-08,2046.1,2045.5,2.39871773]
[1773153640167,1e-08,2046.1,2045.6,0.997]
[1773153640578,0.83120057,2046.6,2045.6,0.997]
[1773153640762,2.05274578,2046.6,2045.6,0.997]
[1773153640963,2.05274578,2046.6,2045.2,0.998]
[1773153641276,2.05274578,2046.6,2045.0,4.88996197]
[1773153641462,2.05274578,2046.6,2045.0,5.88796197]
[1773153641667,2.05274578,2046.6,2045.0,5.88896197]
[1773153642174,2.05274578,2046.6,2045.0,4.88996197]
[1773153642378,2.39871773,2046.5,2044.8,4.88997555]
[1773153642581,2.39871773,2046.2,2044.7,1.22266349]
[1773153642898,2.05274578,2046.6,2044.4,2.22285267]
[1773153642899,2.39871773,2046.4,2044.4,2.22285267]
[1773153643176,2.39871773,2046.4,2044.4,1.22285267]
[1773153643340,2.39871773,2046.4,2044.1,1.22303214]
[1773153643341,1.22189638,2046.0,2044.1,1.22303214]
[1773153643662,2.39871773,2045.8,2044.2,0.04601868]
[1773153643855,2.39871773,2045.5,2044.1,1.22303214]
[1773153644053,0.065536,2045.7,2043.8,1.22321166]
[1773153644283,2.39871773,2045.8,2044.3,1.3]
[1773153644284,2.39871773,2045.3,2044.3,1.3]